bitfinex/quotes_BTCUSD_20250102
["timestamp","ask_amount","ask_price","bid_price","bid_amount"]
[1735802493620,0.1519314,95897.0,95896.0,5.32227692]
[1735802493963,0.1519314,95897.0,95896.0,5.33027692]
[1735802494771,0.01079795,95897.0,95896.0,5.33027692]
[1735802496041,0.01079795,95897.0,95896.0,5.0984906]
[1735802496042,0.1048644,95897.0,95896.0,5.0984906]
[1735802497209,0.24607025,95897.0,95896.0,5.0904906]
[1735802497642,0.24607025,95897.0,95896.0,5.0914906]
[1735802498016,0.24607025,95897.0,95896.0,5.0924906]
[1735802498511,0.24607025,95897.0,95896.0,5.0914906]
[1735802498714,0.01079795,95897.0,95896.0,5.0884906]
[1735802499263,0.01079795,95897.0,95896.0,5.0874906]
[1735802501473,0.01079795,95897.0,95896.0,5.0884906]
[1735802503594,0.01079795,95897.0,95896.0,5.0874906]
[1735802503991,0.01079795,95897.0,95896.0,5.0884906]
[1735802506631,0.01079795,95897.0,95896.0,5.0874906]
[1735802507039,0.01079795,95897.0,95896.0,5.0884906]
[1735802507238,0.01079795,95897.0,95896.0,5.0874906]
[1735802508798,0.01179795,95897.0,95896.0,5.0874906]
[1735802510259,0.01079795,95897.0,95896.0,5.0874906]
[1735802512575,0.01079795,95897.0,95896.0,5.0884906]
[1735802513929,0.28229702,95902.0,95896.0,5.19247692]
[1735802514143,0.28229702,95902.0,95899.0,0.0499]
[1735802514325,8.53e-05,95902.0,95901.0,0.258448]
[1735802514526,8.53e-05,95902.0,95901.0,0.44003432]
[1735802515559,8.53e-05,95902.0,95901.0,0.96665432]
[1735802515762,8.53e-05,95902.0,95901.0,0.97265432]
[1735802516121,8.53e-05,95902.0,95901.0,1.12265432]
[1735802516642,8.53e-05,95902.0,95901.0,1.12465432]
[1735802517011,8.53e-05,95902.0,95901.0,1.11865432]
[1735802517205,8.53e-05,95902.0,95901.0,1.11665432]
[1735802517509,8.53e-05,95902.0,95901.0,1.14426066]
[1735802517711,8.53e-05,95902.0,95901.0,1.13726066]
[1735802517907,8.53e-05,95902.0,95901.0,1.14326066]
[1735802518134,8.53e-05,95902.0,95901.0,1.12565432]
[1735802518349,8.53e-05,95902.0,95901.0,1.13265432]
[1735802518740,8.53e-05,95902.0,95901.0,1.12365432]
[1735802519148,8.53e-05,95902.0,95901.0,1.13265432]
[1735802520140,8.53e-05,95902.0,95901.0,1.12565432]
[1735802520901,8.53e-05,95902.0,95901.0,1.11665432]
[1735802521127,8.53e-05,95902.0,95901.0,1.12465432]
[1735802521328,8.53e-05,95902.0,95901.0,1.13365432]
[1735802521539,8.53e-05,95902.0,95901.0,1.11665432]
[1735802521707,8.53e-05,95902.0,95901.0,5.63782613]
[1735802521895,8.53e-05,95902.0,95901.0,5.64682613]
[1735802522753,8.53e-05,95902.0,95901.0,5.63782613]
[1735802523774,8.53e-05,95902.0,95901.0,5.64582613]
[1735802524157,8.53e-05,95902.0,95901.0,5.64682613]
[1735802524690,8.53e-05,95902.0,95901.0,5.63782613]
[1735802524888,8.53e-05,95902.0,95901.0,5.64682613]
[1735802525087,8.53e-05,95902.0,95901.0,5.77582613]
[1735802526075,8.53e-05,95902.0,95901.0,5.76682613]
[1735802526495,8.53e-05,95902.0,95901.0,5.76082613]
[1735802526773,8.53e-05,95902.0,95901.0,5.76882613]
[1735802527145,8.53e-05,95902.0,95901.0,5.76082613]
[1735802527553,8.53e-05,95902.0,95901.0,5.77882613]
[1735802528234,8.53e-05,95902.0,95901.0,5.78782613]
[1735802529163,3e-07,95905.0,95904.0,0.5012]
[1735802529336,8.53e-05,95917.0,95916.0,0.1]
[1735802529538,0.00013453,95917.0,95916.0,1.24024132]
[1735802529926,0.00013453,95917.0,95916.0,1.34024132]
[1735802530361,0.00013453,95917.0,95916.0,1.34624132]
[1735802530981,0.00013453,95917.0,95916.0,1.34024132]
[1735802531170,0.00013453,95917.0,95916.0,1.34624132]
[1735802531568,0.00013453,95917.0,95916.0,1.35524132]
[1735802532247,0.00013453,95917.0,95916.0,1.34624132]
[1735802532594,0.00013453,95917.0,95916.0,1.34924132]
[1735802533359,0.00013453,95917.0,95916.0,1.35524132]
[1735802533891,0.00013453,95917.0,95916.0,1.34024132]
[1735802534312,0.00013453,95917.0,95916.0,1.35824132]
[1735802534983,0.00013453,95917.0,95916.0,1.34924132]
[1735802535393,0.00013453,95917.0,95916.0,1.35824132]
[1735802535569,0.00013453,95917.0,95916.0,1.34924132]
[1735802535767,0.00013453,95917.0,95916.0,1.34024132]
[1735802535911,0.00013453,95917.0,95916.0,1.35824132]
[1735802536640,0.00013453,95917.0,95916.0,1.34924132]
[1735802536842,0.00013453,95917.0,95916.0,1.35824132]
[1735802538105,0.00013453,95917.0,95916.0,5.87941313]
[1735802541164,0.00013453,95917.0,95916.0,5.88309298]
[1735802541347,0.00013453,95917.0,95916.0,5.90064123]
[1735802543633,0.00013453,95917.0,95916.0,5.91306311]
[1735802544371,0.00013453,95917.0,95916.0,5.90406311]
[1735802544572,0.00013453,95917.0,95916.0,5.91306311]
[1735802545100,0.00013453,95917.0,95916.0,5.93219441]
[1735802545280,0.00013453,95917.0,95916.0,5.94119441]
[1735802545639,0.00013453,95917.0,95916.0,5.92319441]
[1735802545809,0.00013453,95917.0,95916.0,5.93219441]
[1735802546215,0.00013453,95917.0,95916.0,5.94119441]
[1735802546726,0.00013453,95917.0,95916.0,5.93219441]
[1735802548123,0.00013453,95917.0,95916.0,5.94119441]
[1735802549232,0.00013453,95917.0,95916.0,5.94537041]
[1735802550868,5.3e-07,95917.0,95916.0,5.91723911]
[1735802551239,8.53e-05,95928.0,95927.0,0.35]
[1735802551386,0.000104,95937.0,95927.0,0.35]
[1735802551387,3e-07,95929.0,95928.0,0.373]
[1735802551602,3e-07,95929.0,95928.0,1.13326632]
[1735802551603,5.3e-07,95929.0,95928.0,1.13326632]
[1735802551987,5.3e-07,95929.0,95928.0,1.19375018]
[1735802552358,5.3e-07,95929.0,95928.0,1.31995191]
[1735802552561,5.3e-07,95929.0,95928.0,1.33750016]
[1735802552953,5.3e-07,95929.0,95928.0,1.34550016]
[1735802553279,0.000104,95937.0,95936.0,0.711272]
[1735802553499,0.000104,95937.0,95936.0,0.81525832]
[1735802553755,0.000104,95937.0,95936.0,1.34536817]
[1735802554123,0.000104,95937.0,95936.0,1.39105458]
[1735802554344,0.0795984,95949.0,95948.0,0.411546]
[1735802554515,0.07964763,95949.0,95948.0,1.04190232]
[1735802554716,0.07964763,95949.0,95948.0,1.05945057]
[1735802555121,0.07964763,95949.0,95948.0,1.06313042]
[1735802555779,0.07964763,95949.0,95948.0,1.07213042]
[1735802556979,0.07964763,95949.0,95948.0,1.08113042]
[1735802557535,0.07964763,95949.0,95948.0,1.07213042]
[1735802557837,0.07959495,95949.0,95948.0,1.07213042]
[1735802558016,0.07959495,95949.0,95948.0,1.08113042]
[1735802558637,0.07959495,95949.0,95948.0,1.13083042]
[1735802558908,0.07959495,95949.0,95948.0,1.12183042]
[1735802559240,0.07959495,95949.0,95948.0,1.11283042]
[1735802559463,0.07959495,95949.0,95948.0,1.12183042]
[1735802560276,0.07959495,95949.0,95948.0,1.13083042]
[1735802560479,0.07959495,95949.0,95948.0,1.12183042]
[1735802560836,0.07959495,95949.0,95948.0,1.13083042]
[1735802563296,0.07959495,95949.0,95948.0,5.50230223]
[1735802563449,0.07959495,95949.0,95948.0,5.42220223]
[1735802563653,0.07959495,95949.0,95948.0,5.40465398]
[1735802563915,0.07959495,95949.0,95948.0,5.40097413]
[1735802564547,0.07959495,95949.0,95948.0,5.39197413]
[1735802564907,0.07959495,95949.0,95948.0,5.40956387]
[1735802565113,0.07959495,95949.0,95948.0,5.41325203]
[1735802565331,0.07959495,95949.0,95948.0,5.42025203]
[1735802565731,0.07959495,95949.0,95948.0,5.41325203]
[1735802566131,0.07959495,95949.0,95948.0,5.40166229]
[1735802566686,0.07959495,95949.0,95948.0,5.39797413]
[1735802566862,0.07959495,95949.0,95948.0,5.47497413]
[1735802567618,0.07959495,95949.0,95948.0,5.48897413]
[1735802567959,0.07959495,95949.0,95948.0,5.49197413]
[1735802568360,0.07959495,95949.0,95948.0,5.48897413]
[1735802568562,0.07959495,95949.0,95948.0,5.49797413]
[1735802568763,0.07959495,95949.0,95948.0,5.49197413]
[1735802568972,0.07968035,95949.0,95948.0,5.49197413]
[1735802569170,0.07968035,95949.0,95948.0,5.49897413]
[1735802569748,0.07968035,95949.0,95948.0,5.48997413]
[1735802570297,0.07968035,95949.0,95948.0,5.49897413]
[1735802570717,0.07968035,95949.0,95948.0,5.39897413]
[1735802571672,0.07968035,95949.0,95948.0,5.39197413]
[1735802572113,0.07968035,95949.0,95948.0,5.39897413]
[1735802572899,0.07968035,95949.0,95948.0,5.38997413]
[1735802573268,0.07968035,95949.0,95948.0,5.39897413]
[1735802574271,0.07968035,95949.0,95948.0,5.47487413]
[1735802577104,0.07968035,95949.0,95948.0,5.47856578]
[1735802577827,0.07968035,95949.0,95948.0,5.47487413]
[1735802579064,0.07968035,95949.0,95948.0,5.47856895]
[1735802579737,0.07968035,95949.0,95948.0,5.49619702]
[1735802580738,0.07968035,95949.0,95948.0,5.49636762]
[1735802589285,0.07968035,95949.0,95948.0,5.42046762]
[1735802590545,0.07968035,95949.0,95948.0,5.39746762]
[1735802592616,0.07968035,95949.0,95948.0,5.38846762]
[1735802593006,0.07968035,95949.0,95948.0,5.39746762]
[1735802593154,0.07968035,95949.0,95948.0,5.39046762]
[1735802593558,0.07968035,95949.0,95948.0,5.39546762]
[1735802593751,0.07968035,95949.0,95948.0,5.38646762]
[1735802593957,0.07968035,95949.0,95948.0,5.39046762]
[1735802594412,0.07968035,95949.0,95948.0,5.39546762]
[1735802594608,0.07968035,95949.0,95948.0,5.40446762]
[1735802595932,0.07968035,95949.0,95948.0,5.38146762]
[1735802596134,0.07968035,95949.0,95948.0,5.39546762]
[1735802596359,0.07942937,95949.0,95948.0,5.38646762]
[1735802596603,0.07942937,95949.0,95948.0,5.38146762]
[1735802596723,0.07942937,95949.0,95948.0,5.39046762]
[1735802597487,0.07942937,95949.0,95948.0,5.39546762]
[1735802598250,0.07942937,95949.0,95948.0,5.41846762]
[1735802598472,0.07913273,95949.0,95948.0,5.41846762]
[1735802601931,0.07913273,95949.0,95948.0,5.41346762]
[1735802602200,0.07913273,95949.0,95948.0,5.40446762]
[1735802602362,0.07913273,95949.0,95948.0,5.39546762]
[1735802604462,0.07913273,95949.0,95948.0,5.47736762]
[1735802606592,0.07913273,95949.0,95948.0,5.65036762]
[1735802606809,0.07913273,95949.0,95948.0,5.69826762]
[1735802607010,0.07913273,95949.0,95948.0,5.83074085]
[1735802607263,0.07913273,95949.0,95948.0,5.89826762]
[1735802607465,0.16741113,95950.0,95949.0,1.01699697]
[1735802607593,0.14706022,95950.0,95949.0,1.15343359]
[1735802607792,0.08453122,95950.0,95949.0,1.70111648]
[1735802608002,0.06368822,95950.0,95949.0,1.70111648]
[1735802608586,0.06368822,95950.0,95949.0,2.56333963]
[1735802608759,0.02200222,95950.0,95949.0,2.56333963]
[1735802608960,0.03907162,95952.0,95951.0,0.483]
[1735802609195,0.03907162,95952.0,95951.0,1.24253632]
[1735802609714,0.01454032,95954.0,95953.0,0.35]
[1735802609956,0.01454032,95954.0,95953.0,0.60618632]
[1735802610155,0.01454032,95954.0,95953.0,1.13252632]
[1735802610572,0.01454032,95954.0,95953.0,1.15015439]
[1735802610743,0.01454032,95954.0,95953.0,1.15384921]
[1735802611501,0.01454032,95954.0,95953.0,1.9030276]
[1735802612142,0.01454032,95954.0,95953.0,1.9200276]
[1735802612756,0.01454032,95954.0,95953.0,1.9030276]
[1735802612970,0.01454032,95954.0,95953.0,1.9120276]
[1735802613185,9.2e-07,95957.0,95956.0,0.2]
[1735802613418,9.2e-07,95957.0,95956.0,1.28773432]
[1735802613694,9.2e-07,95957.0,95956.0,1.29142914]
[1735802614101,9.2e-07,95957.0,95956.0,1.30905721]
[1735802614458,9.2e-07,95957.0,95956.0,1.40230888]
[1735802615528,9.2e-07,95957.0,95956.0,1.32705721]
[1735802617680,9.2e-07,95957.0,95956.0,1.73125418]
[1735802618585,9.2e-07,95957.0,95956.0,1.84125418]
[1735802618740,9.2e-07,95957.0,95956.0,1.73125418]
[1735802620564,9.2e-07,95957.0,95956.0,1.79409418]
[1735802620771,9.2e-07,95957.0,95956.0,1.87113169]
[1735802622212,9.2e-07,95957.0,95956.0,1.73125418]
[1735802627098,9.2e-07,95957.0,95956.0,2.07495057]
[1735802627469,7e-05,95962.0,95961.0,0.581418]
[1735802627677,7e-05,95962.0,95961.0,0.68540432]
[1735802627876,7e-05,95962.0,95961.0,1.23302721]
[1735802629250,7e-05,95962.0,95961.0,1.36862721]
[1735802629467,7e-05,95962.0,95961.0,1.77282418]
[1735802629814,7e-05,95962.0,95961.0,1.78182418]
[1735802632736,7e-05,95962.0,95961.0,1.79236185]
[1735802633360,7e-05,95962.0,95961.0,6.31353366]
[1735802636427,7e-05,95962.0,95961.0,6.23513366]
[1735802639390,0.0001553,95962.0,95961.0,6.23513366]
[1735802641297,0.0001553,95962.0,95961.0,6.26756302]
[1735802642509,0.0001553,95962.0,95961.0,6.29569632]
[1735802643624,0.0001553,95962.0,95961.0,6.2920015]
[1735802644338,0.0001553,95962.0,95961.0,6.38877595]
[1735802645425,0.0001553,95962.0,95961.0,6.29569611]
[1735802645950,0.0001553,95962.0,95961.0,6.30348509]
[1735802647546,0.0001553,95962.0,95961.0,6.44312212]
[1735802648421,0.0755,95978.0,95977.0,0.208383]
[1735802648603,0.07564763,95978.0,95977.0,0.83857932]
[1735802648803,0.07564763,95978.0,95977.0,0.8463683]
[1735802649008,0.07564763,95978.0,95977.0,0.89582428]
[1735802649670,0.07564763,95978.0,95977.0,0.93756328]
[1735802649841,0.07564763,95978.0,95977.0,0.94656328]
[1735802650077,0.00014763,95978.0,95977.0,0.94656328]
[1735802650281,0.00014763,95978.0,95977.0,0.96956328]
[1735802650481,0.00014763,95978.0,95977.0,0.94956328]
[1735802650772,0.00014763,95978.0,95977.0,0.95556328]
[1735802654134,0.00014763,95978.0,95977.0,1.09554074]
[1735802654647,0.00014763,95978.0,95977.0,1.08054074]
[1735802655151,0.00014763,95978.0,95977.0,1.09554074]
[1735802655297,0.00014763,95978.0,95977.0,5.61671255]
[1735802656083,0.00014763,95978.0,95977.0,5.71671255]
[1735802656303,0.00014763,95978.0,95977.0,5.57673509]
[1735802659522,0.00014763,95978.0,95977.0,5.71671255]
[1735802660132,0.00014763,95978.0,95977.0,5.722614]
[1735802664267,0.00014763,95978.0,95977.0,5.7227846]
[1735802665456,0.08234763,95978.0,95977.0,5.5997846]
[1735802665824,0.08234763,95978.0,95977.0,5.5580456]
[1735802666260,0.08234763,95978.0,95977.0,5.40306814]
[1735802666705,0.08234763,95978.0,95977.0,5.39716669]
[1735802667200,0.08234763,95978.0,95977.0,5.41216669]
[1735802668481,0.08234763,95978.0,95977.0,5.39716669]
[1735802668699,0.08234763,95978.0,95977.0,5.40616669]
[1735802669886,0.08234763,95978.0,95977.0,5.41216669]
[1735802672234,0.00014763,95978.0,95977.0,5.41216669]
[1735802674850,0.00014763,95978.0,95977.0,5.40437771]
[1735802675051,0.00014763,95978.0,95977.0,5.41216871]
[1735802676870,0.00023293,95978.0,95977.0,5.41216871]
[1735802679657,0.0639274,95993.0,95990.0,4.43978278]
[1735802679860,0.0639274,95993.0,95991.0,0.10398632]
[1735802680032,0.0639274,95993.0,95991.0,0.63011632]
[1735802680676,0.0639274,95993.0,95992.0,0.20835]
[1735802680880,0.0639274,95993.0,95992.0,0.73448]
[1735802681967,0.0639274,95993.0,95992.0,0.52613]
[1735802682762,0.0639274,95993.0,95992.0,0.52913]
[1735802682980,0.1448274,95993.0,95992.0,0.53713]
[1735802685999,0.0954274,95993.0,95992.0,0.53713]
[1735802686910,0.0145274,95993.0,95992.0,0.53713]
[1735802695298,0.0145274,95993.0,95992.0,4.97691278]
[1735802697853,0.0145274,95993.0,95992.0,5.0808991]
[1735802700088,0.0145274,95993.0,95992.0,5.09849136]
[1735802701789,0.0145274,95993.0,95992.0,5.0808991]
[1735802702566,0.0145274,95993.0,95992.0,5.0728991]
[1735802702772,0.0145274,95993.0,95992.0,5.0698991]
[1735802703133,0.0145274,95993.0,95992.0,5.0818991]
[1735802703785,0.0145274,95993.0,95992.0,5.0788991]
[1735802703986,0.0145274,95993.0,95992.0,5.0828991]
[1735802705765,0.0145274,95993.0,95992.0,5.42787769]
[1735802706299,0.0145274,95993.0,95992.0,5.41887769]
[1735802706505,0.0145274,95993.0,95992.0,5.41487769]
[1735802706710,0.0145274,95993.0,95992.0,5.42787769]
[1735802706924,0.0145274,95993.0,95992.0,5.41887769]
[1735802707126,0.0145274,95993.0,95992.0,5.41487769]
[1735802707511,0.0145274,95993.0,95992.0,5.41887769]
[1735802708321,0.0145274,95993.0,95992.0,5.42787769]
[1735802709063,0.0145274,95993.0,95992.0,5.41887769]
[1735802709475,0.0145274,95993.0,95992.0,5.42387769]
[1735802709845,0.0145274,95993.0,95992.0,5.42787769]
[1735802710229,0.0145274,95993.0,95992.0,5.41887769]
[1735802711307,0.0145274,95993.0,95992.0,5.43646561]
[1735802711519,0.0145274,95993.0,95992.0,5.92852523]
[1735802711865,0.0145274,95993.0,95992.0,5.91952523]
[1735802712079,0.0145274,95993.0,95992.0,5.92852523]
[1735802713105,0.0145274,95993.0,95992.0,6.20888556]
[1735802713934,0.0145274,95993.0,95992.0,5.44546561]
[1735802716481,2.07846272,95993.0,95992.0,5.2903194]
[1735802716712,2.07846272,95993.0,95992.0,5.15703705]
[1735802716713,2.28186066,95993.0,95992.0,5.15703705]
[1735802716919,2.23024318,95993.0,95992.0,5.09627013]
[1735802717267,2.33024318,95993.0,95992.0,5.09627013]
[1735802717458,2.22087434,95993.0,95992.0,5.09227013]
[1735802717661,2.22187434,95993.0,95992.0,5.08327013]
[1735802717938,2.22187434,95993.0,95992.0,4.73829154]
[1735802718519,2.12187434,95993.0,95992.0,4.73929154]
[1735802718729,2.22187434,95993.0,95992.0,4.73829154]
[1735802718929,2.32486066,95993.0,95992.0,4.73829154]
[1735802719780,2.32486066,95993.0,95992.0,4.73929154]
[1735802720875,1.53412172,95993.0,95992.0,4.73929154]
[1735802721051,1.53412172,95993.0,95992.0,4.73829154]
[1735802723409,1.53412172,95993.0,95992.0,4.73846234]
[1735802723806,1.35320872,95993.0,95992.0,4.73846234]
[1735802724366,1.55422072,95993.0,95992.0,4.73846234]
[1735802724584,1.65820704,95993.0,95992.0,4.73846234]
[1735802725231,0.57686172,95993.0,95992.0,4.73846234]
[1735802725431,0.2228754,95993.0,95992.0,4.73846234]
[1735802725638,0.0145274,95993.0,95992.0,4.73846234]
[1735802727172,0.0145274,95993.0,95992.0,4.73946234]
[1735802727584,0.0145274,95993.0,95992.0,4.74146234]
[1735802727702,0.0145274,95993.0,95992.0,4.74046234]
[1735802727912,0.0145274,95993.0,95992.0,4.73846234]
[1735802728127,0.0145274,95993.0,95992.0,4.74146234]
[1735802728339,0.0145274,95993.0,95992.0,4.74246234]
[1735802730388,0.0145274,95993.0,95992.0,4.73846234]
[1735802730695,0.0155274,95993.0,95992.0,4.73846234]
[1735802731044,0.15,95994.0,95993.0,4.42525538]
[1735802731453,0.15,95994.0,95993.0,4.42425538]
[1735802731867,0.208344,95995.0,95993.0,4.42425538]
[1735802733117,0.001,95994.0,95993.0,4.42425538]
[1735802733596,0.15,95994.0,95993.0,4.42425538]
[1735802734249,0.98957332,95994.0,95993.0,4.42425538]
[1735802734477,0.98957332,95994.0,95993.0,4.42525538]
[1735802734679,1.08957332,95994.0,95993.0,4.42525538]
[1735802734987,1.08957332,95994.0,95993.0,4.42425538]
[1735802735402,1.08965872,95994.0,95993.0,4.42425538]
[1735802736017,1.08965872,95994.0,95993.0,4.41715899]
[1735802736563,0.98965872,95994.0,95993.0,4.41715899]
[1735802736755,1.08965872,95994.0,95993.0,4.41715899]
[1735802736935,1.09165872,95994.0,95993.0,4.41715899]
[1735802737296,1.09365872,95994.0,95993.0,4.41815899]
[1735802737842,1.09165872,95994.0,95993.0,4.41715899]
[1735802738048,1.19864504,95994.0,95993.0,4.31398399]
[1735802738638,1.09465872,95994.0,95993.0,4.31398399]
[1735802739847,1.09865872,95994.0,95993.0,4.31398399]
[1735802743929,0.46307172,95994.0,95993.0,4.31398399]
[1735802744328,2.58070472,95994.0,95993.0,4.31398399]
[1735802747945,2.44418272,95994.0,95993.0,4.31398399]
[1735802748651,2.54816904,95994.0,95993.0,4.31398399]
[1735802753185,2.54616904,95994.0,95993.0,4.31298399]
[1735802753337,2.54316904,95994.0,95993.0,4.31298399]
[1735802753544,2.54516904,95994.0,95993.0,4.31398399]
[1735802753884,2.54316904,95994.0,95993.0,4.31298399]
[1735802754037,2.54316904,95994.0,95993.0,4.31398399]
[1735802754245,2.54516904,95994.0,95993.0,4.31398399]
[1735802754567,2.52736604,95994.0,95993.0,4.31398399]
[1735802755748,2.38826304,95994.0,95993.0,4.31398399]
[1735802757160,2.37382704,95994.0,95993.0,4.31398399]
[1735802757810,2.36265904,95994.0,95993.0,4.31398399]
[1735802758618,2.34958004,95994.0,95993.0,4.31415479]
[1735802760769,2.33761004,95994.0,95993.0,4.31415479]
[1735802760944,2.32616404,95994.0,95993.0,4.31415479]
[1735802761893,2.30528704,95994.0,95993.0,4.31415479]
[1735802762024,0.208344,95995.0,95994.0,2.00769695]
[1735802762239,0.60613332,95995.0,95994.0,2.00769695]
[1735802763292,0.60913332,95995.0,95994.0,1.96602695]
[1735802763432,0.60913332,95995.0,95994.0,1.90352195]
[1735802763982,0.60913332,95995.0,95994.0,1.86185195]
[1735802764604,0.60918251,95995.0,95994.0,1.79934695]
[1735802764761,0.60918251,95995.0,95994.0,1.7128804]
[1735802765795,0.75918251,95995.0,95994.0,1.7128804]
[1735802766236,0.75918251,95995.0,95994.0,1.6712104]
[1735802766386,0.75918251,95995.0,95994.0,1.6503754]
[1735802766591,3.49138051,95995.0,95994.0,1.6087054]
[1735802766894,3.59536683,95995.0,95994.0,1.5253654]
[1735802767236,3.59536683,95995.0,95994.0,1.5045304]
[1735802767773,3.59536683,95995.0,95994.0,1.4836954]
[1735802767969,1.30435251,95995.0,95994.0,1.4836954]
[1735802770401,0.46537951,95995.0,95994.0,1.4836954]
[1735802771149,0.85804951,95995.0,95994.0,1.4836954]
[1735802771374,0.46537951,95995.0,95994.0,1.4836954]
[1735802771573,0.46237951,95995.0,95994.0,1.4836954]
[1735802771800,0.46346491,95995.0,95994.0,1.4836954]
[1735802772005,0.81189291,95995.0,95994.0,1.4836954]
[1735802772293,0.81089291,95995.0,95994.0,1.4836954]
[1735802772707,0.81189291,95995.0,95994.0,1.4836954]
[1735802773111,0.91487923,95995.0,95994.0,1.4836954]
[1735802773488,0.91587923,95995.0,95994.0,1.4836954]
[1735802774103,0.81189291,95995.0,95994.0,1.4836954]
[1735802774502,0.81089291,95995.0,95994.0,1.4836954]
[1735802774907,0.81189291,95995.0,95994.0,1.4836954]
[1735802775967,0.81089291,95995.0,95994.0,1.4836954]
[1735802776329,0.81189291,95995.0,95994.0,1.4836954]
[1735802777284,0.83194745,95995.0,95994.0,1.3795204]
[1735802778281,0.83194745,95995.0,95994.0,1.3378504]
[1735802778874,0.83194745,95995.0,95994.0,1.3170154]
[1735802779075,0.83194745,95995.0,95994.0,1.2961804]
[1735802779279,0.81189291,95995.0,95994.0,1.2753454]
[1735802779480,0.81189291,95995.0,95994.0,1.2336754]
[1735802779942,0.81189291,95995.0,95994.0,1.1920054]
[1735802780716,1.09382236,95995.0,95994.0,1.1295004]
[1735802781324,0.81189291,95995.0,95994.0,1.0878304]
[1735802782030,0.81189291,95995.0,95994.0,1.0461604]
[1735802782656,0.91587923,95995.0,95994.0,1.0044904]
[1735802782861,1.19780868,95995.0,95994.0,0.9836554]
[1735802783709,0.91587923,95995.0,95994.0,0.9419854]
[1735802783915,0.69825491,95995.0,95994.0,0.9421562]
[1735802785635,0.98014706,95995.0,95994.0,0.9421562]
[1735802786944,0.69825491,95995.0,95994.0,0.9421562]
[1735802787061,0.80224123,95995.0,95994.0,0.9421562]
[1735802787266,0.56745123,95995.0,95994.0,0.9421562]
[1735802787467,1.14150091,95995.0,95994.0,0.9421562]
[1735802788881,1.37636982,95995.0,95994.0,0.9421562]
[1735802789445,1.14150091,95995.0,95994.0,0.9421562]
[1735802793417,1.00433091,95995.0,95994.0,0.9421562]
[1735802794323,1.00433091,95995.0,95994.0,0.9422002]
[1735802794680,1.28622306,95995.0,95994.0,0.9422002]
[1735802794918,1.39020938,95995.0,95994.0,0.9422002]
[1735802795421,1.28622306,95995.0,95994.0,0.9422002]
[1735802796828,1.00433091,95995.0,95994.0,0.9422002]
[1735802799890,1.28622306,95995.0,95994.0,0.9422002]
[1735802800648,1.28622306,95995.0,95994.0,0.9922002]
[1735802803573,1.00433091,95995.0,95994.0,0.9922002]
[1735802803773,1.04452198,95995.0,95994.0,0.9922002]
[1735802806975,1.00433091,95995.0,95994.0,0.9922002]
[1735802810586,0.46346491,95995.0,95994.0,0.9922002]
[1735802810717,1.17377491,95995.0,95994.0,0.9922002]
[1735802810923,1.16228591,95995.0,95994.0,0.9922002]
[1735802812179,1.16200609,95995.0,95994.0,0.9922002]
[1735802812344,1.26599241,95995.0,95994.0,0.9922002]
[1735802814251,1.26599241,95995.0,95994.0,0.98400765]
[1735802814449,1.26599241,95995.0,95994.0,0.97767143]
[1735802814979,1.16200609,95995.0,95994.0,0.97767143]
[1735802815180,1.17467287,95995.0,95994.0,0.97767143]
[1735802815720,1.16200609,95995.0,95994.0,0.97767143]
[1735802818209,1.03997509,95995.0,95994.0,0.97767143]
[1735802820669,1.3219311,95995.0,95994.0,0.97767143]
[1735802820826,1.2615511,95995.0,95994.0,0.97767143]
[1735802821024,1.1758581,95995.0,95994.0,0.97767143]
[1735802821765,1.27984442,95995.0,95994.0,0.97767143]
[1735802822457,1.01055519,95995.0,95994.0,0.97767143]
[1735802822643,1.01055519,95995.0,95994.0,0.89433143]
[1735802823081,0.99788841,95995.0,95994.0,0.79015643]
[1735802823674,0.99788841,95995.0,95994.0,0.76932143]
[1735802823894,0.99688841,95995.0,95994.0,0.72765143]
[1735802824253,0.99688841,95995.0,95994.0,0.68288171]
[1735802824721,0.99788841,95995.0,95994.0,0.62037671]
[1735802824922,0.99788841,95995.0,95994.0,0.60054171]
[1735802825136,0.99788841,95995.0,95994.0,0.57970671]
[1735802825687,0.99788841,95995.0,95994.0,0.55887171]
[1735802826060,0.99688841,95995.0,95994.0,0.47553171]
[1735802826271,0.99688841,95995.0,95994.0,0.47453171]
[1735802826468,1.01088841,95995.0,95994.0,0.47453171]
[1735802826760,0.89790209,95995.0,95994.0,0.45369671]
[1735802826913,0.89290209,95995.0,95994.0,0.45369671]
[1735802827475,1.18079884,95995.0,95994.0,0.45369671]
[1735802827673,1.18979884,95995.0,95994.0,0.45369671]
[1735802827875,1.15946484,95995.0,95994.0,0.45369671]
[1735802828120,1.00946484,95995.0,95994.0,0.45369671]
[1735802828775,0.87744459,95995.0,95994.0,0.45369671]
[1735802828945,0.98143091,95995.0,95994.0,0.45369671]
[1735802829170,0.99043091,95995.0,95994.0,0.45369671]
[1735802829357,0.99643091,95995.0,95994.0,0.45369671]
[1735802829571,0.98743091,95995.0,95994.0,0.45369671]
[1735802830194,0.99043091,95995.0,95994.0,0.45369671]
[1735802830605,0.98743091,95995.0,95994.0,0.45369671]
[1735802831083,0.98443091,95995.0,95994.0,0.45369671]
[1735802832552,0.99143091,95995.0,95994.0,0.45369671]
[1735802832760,0.88044459,95995.0,95994.0,0.45369671]
[1735802832963,0.87744459,95995.0,95994.0,0.45369671]
[1735802833185,0.88944459,95995.0,95994.0,0.45369671]
[1735802833491,0.88044459,95995.0,95994.0,0.45369671]
[1735802833883,0.88844459,95995.0,95994.0,0.45369671]
[1735802835054,0.95030231,95995.0,95994.0,0.45369671]
[1735802835847,1.23219906,95995.0,95994.0,0.45369671]
[1735802836934,1.28507492,95995.0,95994.0,0.45369671]
[1735802837047,1.00317817,95995.0,95994.0,0.45369671]
[1735802837526,0.94132045,95995.0,95994.0,0.45369671]
[1735802837752,0.94132045,95995.0,95994.0,0.53339671]
[1735802837963,0.88844459,95995.0,95994.0,0.53339671]
[1735802838772,0.88844459,95995.0,95994.0,0.28883498]
[1735802838930,0.88844459,95995.0,95994.0,0.2288597]
[1735802839133,0.99243091,95995.0,95994.0,0.2288597]
[1735802839340,0.99243091,95995.0,95994.0,0.10273101]
[1735802839540,0.99243091,95995.0,95994.0,0.08359248]
[1735802839734,0.99243091,95995.0,95994.0,0.04845574]
[1735802839943,0.15,95994.0,95991.0,0.02858644]
[1735802840259,0.20839,95974.0,95958.0,0.1]
[1735802840659,0.20839,95974.0,95957.0,0.0231706]
[1735802840862,0.20839,95974.0,95957.0,0.11214433]
[1735802841155,0.20839,95974.0,95957.0,0.0231706]
[1735802841563,0.208399,95970.0,95957.0,0.0001706]
[1735802841765,0.20814296,95970.0,95957.0,0.0001706]
[1735802842164,0.20814296,95970.0,95958.0,0.001]
[1735802842391,0.797781,95969.0,95958.0,0.001]
[1735802842592,0.208394,95972.0,95957.0,0.0001706]
[1735802842895,0.28271,95971.0,95957.0,0.0001706]
[1735802843097,0.208398,95970.0,95958.0,0.0797]
[1735802843297,0.123211,95970.0,95961.0,0.0491]
[1735802843596,0.208394,95972.0,95962.0,0.0797]
[1735802844377,0.208394,95972.0,95966.0,0.1]
[1735802844570,0.208394,95972.0,95967.0,0.0491]
[1735802844775,0.20839,95974.0,95968.0,0.0797]
[1735802846403,0.20839,95974.0,95968.0,0.0807]